Cogmind - Beta 12 @@@ ROGUE MODE // 2023.09.04 @ 12:35:52 Player: haldagan Result: Destroyed by as-83266 with Assembled Heavy Rifle Performance ------------- Evolutions (0) 0 Regions Visited (4) 800 Robots Destroyed (12) 60 Value Destroyed (260) 260 Prototype IDs (0) 0 Alien Tech Used (0) 0 Bonus (81) 81 TOTAL SCORE: 1201 Bonus ------- Follower Combat Kills 81 Cogmind --------- Core Integrity 0/250 Matter 300/300 Energy 265/265 System Corruption 2% Temperature Cool (0) Movement Core (850) Ox16 Location -9/Mines Parts ------- > --- POWER (1) -------- Reinforced Ion Engine > --- PROPULSION (2) --- (None) > --- UTILITY (2) ------ High-capacity Storage Unit > --- WEAPON (2) ------- (None) > --- INVENTORY (20) --- Ion Engine Light Ion Engine Light Fission Core Hover Unit Heat Sink Large Storage Unit Medium Battery (150) High-capacity Battery (250) High-capacity Matter Pod (135) Structural Scanner Sensor Array Sensor Array Seismic Detector ECM Suite Medium Armor Plating Tractor Beam High-powered Tractor Beam Field Recycling Unit (0) Heavy EM Pulse Gun Heavy EM Pulse Gun Peak State ------------ > --- POWER ------------ Reinforced Ion Engine > --- PROPULSION ------- Light Treads Light Treads > --- UTILITY ---------- High-capacity Storage Unit Medium Armor Plating > --- WEAPON ----------- Heavy EM Pulse Gun Heavy EM Pulse Gun > --- INVENTORY -------- Ion Engine Light Ion Engine Light Fission Core Hover Unit Heat Sink Large Storage Unit Medium Battery High-capacity Battery High-capacity Matter Pod Structural Scanner Sensor Array Sensor Array Seismic Detector ECM Suite Medium Armor Plating Tractor Beam Field Recycling Unit Heavy EM Pulse Gun Heavy EM Pulse Gun [Rating: 13] Favorites ----------- Power Ion Engine Engine Ion Engine Propulsion Light Treads Treads Light Treads Utility Medium Armor Plating Storage High-capacity Storage Unit Protection Medium Armor Plating Weapon Heavy EM Pulse Gun Energy Gun Heavy EM Pulse Gun Ballistic Gun Assault Rifle Launcher Rocket Launcher Build | -11 -10 -10 -10 -9 ------- Run | Jun Mat Min Exi Min Slots Evolved . | . . . . . Power . | . . . . . Propulsion . | . . . . . Utility . | . . . . . Weapon . | . . . . . Parts Attached 19 | 5 10 2 1 1 Power 3 | 1 1 . . 1 Engine 3 | 1 1 . . 1 Core . | . . . . . Reactor . | . . . . . Propulsion 2 | 2 . . . . Treads 2 | 2 . . . . Leg . | . . . . . Wheel . | . . . . . Hover . | . . . . . Flight . | . . . . . Utility 8 | . 7 1 . . Device . | . . . . . Storage 6 | . 5 1 . . Processor . | . . . . . Hackware . | . . . . . Protection 2 | . 2 . . . Artifact . | . . . . . Weapon 6 | 2 2 1 1 . Energy Gun 3 | 1 1 . 1 . Energy Cannon . | . . . . . Ballistic Gun 1 | 1 . . . . Ballistic Cannon . | . . . . . Launcher 2 | . 1 1 . . Special Weapon . | . . . . . Impact Weapon . | . . . . . Slashing Weapon . | . . . . . Piercing Weapon . | . . . . . Special Melee Weapon . | . . . . . Unidentified Prototypes . | . . . . . Parts Lost 5 | . . . . 5 Power . | . . . . . Propulsion 2 | . . . . 2 Utility 1 | . . . . 1 Weapon 2 | . . . . 2 Highest Loss Streak 5 | . . . . 5 To Critical Strikes . | . . . . . Average Slot Usage (%) 98 | . 94 100 99 97 Engine 14 | . 14 14 14 14 Treads 27 | . 28 28 28 27 Storage 15 | . 19 14 14 14 Protection 11 | . 3 14 14 13 Energy Gun 19 | . 8 14 24 27 Ballistic Gun 4 | . 14 7 . . Launcher 3 | . 5 6 3 . Naked Turns . | . . . . . Heaviest Build 63 | 7 37 59 59 63 Greatest Support 40 | 40 40 40 40 40 Greatest Overweight (x) 17 | . . 1 1 17 Average Overweight (x) . | . . . 1 1 Largest Inventory Capacity 20 | 5 15 20 20 20 Average Capacity 17 | 5 10 19 20 20 Most Carried 20 | 3 14 20 20 20 Average Carried 16 | 1 6 18 19 19 Final Capacity 20 | 5 15 20 20 20 Final Carried 20 | 2 14 20 19 20 Class Distribution -------------------- 100% | Mutant Dominant Class ---------------- Mutant | -10/Materials Mutant | -10/Mines Mutant | -10/Exiles Mutant | -9/Mines Resources | -11 -10 -10 -10 -9 ----------- Run | Jun Mat Min Exi Min Matter Collected 576 | 238 131 70 . 137 Remotely . | . . . . . Salvage Created 279 | . 191 15 . 73 Parts 23 | . 10 4 . 9 Haulers Intercepted . | . . . . . Recyclers Shooed . | . . . . . Parts Field Recycled . | . . . . . Retrieved Matter . | . . . . . Parts Self-Destructed . | . . . . . Prevented . | . . . . . Kills | -11 -10 -10 -10 -9 ------- Run | Jun Mat Min Exi Min Combat Hostiles Destroyed 11 | . 5 3 . 3 Guns 3 | . 1 1 . 1 AOE 8 | . 4 2 . 2 Classes Destroyed 3 | . 1 1 . 1 Tunneler 1 | . . . . 1 Swarmer 6 | . . 3 . 3 Grunt 5 | . 5 . . . Best Kill Streak 4 | . 4 3 . 4 Combat Bots Only 4 | . 4 3 . 3 Max Kills in Single Turn 4 | . 4 2 . 2 Gunslinging . | . . . . . Exploded 4 | . 4 2 . 1 Melee . | . . . . . Uniques/NPCs Destroyed . | . . . . . Combat | -11 -10 -10 -10 -9 -------- Run | Jun Mat Min Exi Min Damage Taken 1082 | . 299 140 . 643 Core 257 | . 22 19 . 216 Absorbed by Shields . | . . . . . Core Remaining (%) 100 | 100 . . . . Volleys Fired 28 | . 8 11 . 9 Largest 2 | . 2 1 . 2 Hottest 90 | . 70 45 . 90 Shots Fired 41 | . 13 11 . 17 Gun 38 | . 12 9 . 17 Cannon . | . . . . . Launcher 3 | . 1 2 . . Special . | . . . . . Kinetic 7 | . 7 . . . Thermal 4 | . 4 . . . Explosive 3 | . 1 2 . . Electromagnetic 27 | . 1 9 . 17 Robot Hit Streak 3 | . 3 1 . 2 Robot Miss Streak 11 | . 3 11 . 5 Penetration Max . | . . . . . Secondary Targets . | . . . . . Shots Hit Robots 12 | . 5 1 . 6 Core Hits 14 | . 6 3 . 5 Critical Kills . | . . . . . Critical Parts Destroyed . | . . . . . Critical Strikes . | . . . . . Melee Attacks . | . . . . . Impact . | . . . . . Slashing . | . . . . . Piercing . | . . . . . Sneak Attacks . | . . . . . Combat Hostiles . | . . . . . Follow-up Attacks . | . . . . . Damage Inflicted 495 | . 198 145 . 152 Guns 143 | . 55 12 . 76 Cannons . | . . . . . Explosions 351 | . 143 133 . 75 Melee . | . . . . . Ramming 1 | . . . . 1 Kinetic 42 | . 42 . . . Thermal 88 | . 13 . . 75 Explosive 276 | . 143 133 . . Electromagnetic 88 | . . 12 . 76 Impact . | . . . . . Slashing . | . . . . . Piercing . | . . . . . Highest Corruption 2 | . 2 2 2 2 Average Corruption 1 | . 1 2 2 2 Corruption Purged . | . . . . . Corruption Blocked . | . . . . . Effects 37 | . 2 6 13 16 Message Errors 14 | . . 3 5 6 Matter Fused 3 | . 1 1 . 1 Heat Flow Errors 4 | . . . 1 3 Energy Discharges 7 | . . 2 3 2 Parts Fused 1 | . . . . 1 Data Loss (minor) 6 | . 1 . 2 3 Alerts 2 | . . . 2 . Overload Shots . | . . . . . Overflow Damage . | . . . . . Projectiles . | . . . . . Explosions . | . . . . . Melee . | . . . . . Knockbacks . | . . . . . Impact . | . . . . . Kinetic . | . . . . . Secondary . | . . . . . Self-Inflicted Damage 109 | . 5 41 . 63 Shots 5 | . 1 2 . 2 Rammed 1 | . . . . 1 Targets Rammed 1 | . . . . 1 Kicked . | . . . . . Crushed . | . . . . . Highest Temperature 287 | . 78 90 233 287 Average Temperature 88 | . 32 46 119 103 Received Heat Transfer 368 | . 108 . . 260 Effects 1 | . . . . 1 Energy Bleed 1 | . . . . 1 Siege Activations . | . . . . . Robots Corrupted . | . . . . . Combat Hostiles . | . . . . . Parts Fried . | . . . . . Impact Corruptions . | . . . . . Robots Melted . | . . . . . Combat Hostiles . | . . . . . Parts Melted 1 | . . . . 1 Heat Transferred 87 | . 37 . . 50 Parts Sabotaged . | . . . . . Parts Stolen . | . . . . . Parts Stripped . | . . . . . Power Chain Reactions 2 | . . . . 2 Missiles Intercepted . | . . . . . Alert | -11 -10 -10 -10 -9 ------- Run | Jun Mat Min Exi Min Peak Influence 175 | . 168 88 . 175 Initial 5 | . . 5 . . Average 56 | . 60 20 . 84 Maximum Alert Level . | . . . . . Low Security (%) 100 | 100 100 100 . 100 Level 1 . | . . . . . Level 2 . | . . . . . Level 3 . | . . . . . Level 4 . | . . . . . Level 5 . | . . . . . High Security . | . . . . . Max Security . | . . . . . Squads Dispatched 1 | . 1 . . . Investigation . | . . . . . Extermination . | . . . . . Reinforcement 1 | . 1 . . . Assault . | . . . . . Garrison . | . . . . . Intercept . | . . . . . Searches Triggered . | . . . . . Construction Impeded . | . . . . . Haulers Reinforced . | . . . . . Active Scanning Responses . | . . . . . Cargo Convoy Interrupts . | . . . . . Stealth | -11 -10 -10 -10 -9 --------- Run | Jun Mat Min Exi Min Distress Signals . | . . . . . Communications Jammed . | . . . . . Distress Signals . | . . . . . Times Spotted 31 | . 11 3 . 17 Peak Tracking Total 8 | . 5 3 . 8 Tactical Retreats 2 | . . . . 2 Traps | -11 -10 -10 -10 -9 ------- Run | Jun Mat Min Exi Min Traps Triggered 2 | . 2 . . . Indirectly . | . . . . . Trap Hack Attempts . | . . . . . Triggered . | . . . . . Disarmed . | . . . . . Reprogrammed . | . . . . . Reused . | . . . . . Traps Extracted . | . . . . . Installed . | . . . . . Triggered . | . . . . . Machines | -11 -10 -10 -10 -9 ---------- Run | Jun Mat Min Exi Min Machines Disabled 1 | . . . . 1 Max in Single Turn . | . . . . . Machines Repaired . | . . . . . Machines Sabotaged . | . . . . . Overloaded Fab Kills . | . . . . . Hacking | -11 -10 -10 -10 -9 --------- Run | Jun Mat Min Exi Min Machines Accessed 3 | . 2 . 1 . Terminals 2 | . 2 . . . Fabricators . | . . . . . Repair Stations . | . . . . . Recycling Units . | . . . . . Scanalyzers . | . . . . . Garrison Access . | . . . . . Total Hacks 12 | . 11 . 1 . Successful 8 | . 7 . 1 . Failed 4 | . 4 . . . Catastrophic . | . . . . . Database Lockouts . | . . . . . Manual . | . . . . . Terminals 11 | . 11 . . . Fabricators . | . . . . . Repair Stations . | . . . . . Recycling Units . | . . . . . Scanalyzers . | . . . . . Garrison Access . | . . . . . Terminal Hacks 8 | . 7 . 1 . Record 4 | . 3 . 1 . Alert Level 2 | . 2 . . . Registered Components 1 | . 1 . . . Zone Layout 1 | . 1 . . . Fabricator Hacks . | . . . . . Repair Station Hacks . | . . . . . Recycling Unit Hacks . | . . . . . Scanalyzer . | . . . . . Garrison Access Hacks . | . . . . . Unauthorized Hacks . | . . . . . Terminals . | . . . . . Fabricators . | . . . . . Repair Stations . | . . . . . Recycling Units . | . . . . . Scanalyzers . | . . . . . Garrison Access . | . . . . . Data Cores Recovered . | . . . . . Used . | . . . . . Hacking Detections 2 | . 2 . . . Full Trace Events 2 | . 2 . . . Feedback Events . | . . . . . Feedback Blocked . | . . . . . Robot Schematics Acquired . | . . . . . Robots Built . | . . . . . Authchips . | . . . . . Time . | . . . . . Total Robot Build Rating . | . . . . . Part Schematics Acquired . | . . . . . Parts Built . | . . . . . Authchips . | . . . . . Time . | . . . . . Total Part Build Rating . | . . . . . Parts Repaired . | . . . . . Time . | . . . . . Parts Recycled . | . . . . . Recycled Matter . | . . . . . Retrieved Matter . | . . . . . Retrieved Components . | . . . . . Parts Scanalyzed . | . . . . . Part Schematics Acquired . | . . . . . Parts Damaged . | . . . . . Bothacking | -11 -10 -10 -10 -9 ------------ Run | Jun Mat Min Exi Min Used RIF Installer . | . . . . . Robots Hacked . | . . . . . Non-combat . | . . . . . Combat . | . . . . . Robot Hacks Applied . | . . . . . Relay Couplers Released . | . . . . . Fabnet Peak Effective % . | . . . . . Robots Rewired . | . . . . . Allies Hacked . | . . . . . Hacks Repelled . | . . . . . Allies | -11 -10 -10 -10 -9 -------- Run | Jun Mat Min Exi Min Total Allies 5 | . . . . 5 Largest Group 4 | . . . . 4 Highest-Rated Group 72 | . . . . 72 Highest-Rated Ally 31 | . . . . 31 Total Orders . | . . . . . Ally Attacks 54 | . . . . 54 Total Damage 584 | . . . . 584 Kills 12 | . . . . 12 Allies Corrupted . | . . . . . Allies Melted . | . . . . . Intel | -11 -10 -10 -10 -9 ------- Run | Jun Mat Min Exi Min Robot Analysis Total . | . . . . . Derelict Logs Recovered 3 | . . 1 . 2 Drone Launches . | . . . . . Drone Recoveries . | . . . . . Exploration | -11 -10 -10 -10 -9 ------------- Run | Jun Mat Min Exi Min Turns Passed 2965 | 78 567 637 809 874 Spaces Moved 1298 | 47 317 258 336 340 Core 11 | 9 . . . 2 Treads 1287 | 38 317 258 336 338 Legs . | . . . . . Wheels . | . . . . . Hover . | . . . . . Flight . | . . . . . Fastest Speed 50 | 50 160 160 240 240 Average Speed 216 | 138 160 234 240 244 Slowest Speed 900 | 160 160 240 240 900 Overloaded Moves . | . . . . . Propulsion Burnouts . | . . . . . Robots Hopped . | . . . . . Cave-ins Triggered . | . . . . . Exploration Rate (%) 46 | 5 37 44 77 71 Regions Visited 4 Branch Regions 3 Pre-discovered Areas . | . . . . . Known Exits Taken . | . . . . . Unknown Exits Taken 4 | 1 1 1 1 . Scrap Searched 4 | . . 2 . 2 Spaces Dug . | . . . . . Terrain Destroyed 47 | . 10 23 . 14 Melee . | . . . . . Projectile . | . . . . . AOE 47 | . 10 23 . 14 Terrain Rammed . | . . . . . Walls Destroyed . | . . . . . Machines Disabled . | . . . . . Actions | -11 -10 -10 -10 -9 --------- Run | Jun Mat Min Exi Min Total 1415 | 60 372 280 341 362 Wait 6 | . . . . 6 Move 1294 | 46 316 257 335 340 Hop . | . . . . . Pick Up 45 | 8 24 8 2 3 Fast Attach . | . . . . . Attach 17 | 5 10 1 1 . Detach 4 | . 4 . . . Swap 2 | . . 1 . 1 Drop 18 | 1 10 2 3 2 Fire 28 | . 8 11 . 9 Melee . | . . . . . Ram 1 | . . . . 1 Kick . | . . . . . Crush . | . . . . . Escape Stasis . | . . . . . Rewire . | . . . . . Trap . | . . . . . Miscellaneous . | . . . . . Route ------- -11/Junkyard -10/Materials (discovered 2 exits: [*Mat] / [*Min]) -10/Mines -10/Exiles (discovered 2 exits: [*Min x2]) -9/Mines (discovered 1 exit: [*Mat]) History --------- Turn | Location | Event 7 | -11/Junkyard | Discovered new exit (range 15) 79 | -11/Junkyard | Entered Materials 311 | -10/Materials | Build established: Mutant 326 | -10/Materials | Discovered new exit (range 8) 453 | -10/Materials | Discovered new exit (range 8) 646 | -10/Materials | Entered Mines 935 | -10/Mines | Learned 2 Materials zone layouts 963 | -10/Mines | Received a Rocket Launcher from a helpful Derelict 1071 | -10/Mines | Deemed a non-threat by the Exiles lab entrance 1071 | -10/Mines | Discovered new exit (range 5) 1283 | -10/Mines | Entered Exiles 1283 | -10/Exiles | Found Exiles lab abandoned 1338 | -10/Exiles | Discovered new exit (range 14) 2061 | -10/Exiles | Discovered new exit (range 15) 2092 | -10/Exiles | Entered Mines 2092 | -9/Mines | Discovered new exit (range 10) 2126 | -9/Mines | Learned Materials security intel 2361 | -9/Mines | Learned 2 Materials zone layouts 2416 | -9/Mines | Assisted by bots powering up and referring to "LRC-V3" 2891 | -9/Mines | Assembled infested the area 2896 | -9/Mines | Assisted by a Guerilla fighting off Assembled 2948 | -9/Mines | Core integrity fell below 50% 2954 | -9/Mines | Core integrity fell below 20% 2966 | -9/Mines | Destroyed by as-83266 with Assembled Heavy Rifle Last Messages --------------- 02923_ HV Slug penetrates Wall. 02926_ R3-SVA(h) heat short circuits Phase Shifter. 02926_ R3-SVA(h) destroyed. 02927_ as-31280 suffers critical hit (Burn). 02928_ MHAQ5LO